fUSD/lending_fUSD_20260512
["ID","MTS","AMOUNT","RATE_DAILY","PERIOD"]
[422038823,1778515339000,-199.63,0.00015,2]
[422038810,1778515339000,-500.0,0.00014418,2]
[422038811,1778515339000,-500.0,0.00014418,2]
[422038812,1778515339000,-500.0,0.00014418,2]
[422038813,1778515339000,-500.0,0.00014418,2]
[422038814,1778515339000,-500.0,0.00014418,2]
[422038815,1778515339000,-924.0,0.00014418,2]
[422038822,1778515339000,-206830.79643888,0.00015,2]
[422038817,1778515339000,-500.0,0.00014692,2]
[422038821,1778515339000,-300.0,0.00014999,2]
[422038820,1778515339000,-500.0,0.00014966,2]
[422038816,1778515339000,-500.0,0.00014692,2]
[422038819,1778515339000,-500.0,0.00014966,2]
[422038818,1778515339000,-500.0,0.00014966,2]
[422038824,1778515349000,1896.62523092,0.000149,2]
[422038825,1778515386000,186.57832469,0.00014692,2]
[422038826,1778515394000,296.87862932,0.00014692,2]
[422038827,1778515524000,26718.87296133,0.000107,2]
[422038848,1778515832000,-2500.0,0.00016886,2]
[422038852,1778515832000,-250.0,0.00016886,2]
[422038854,1778515832000,-9999.99,0.00016922,2]
[422038855,1778515832000,-150.99,0.00016922,2]
[422038859,1778515832000,-999.99,0.00016922,2]
[422038857,1778515832000,-6083.49,0.00016922,2]
[422038858,1778515832000,-24853.72,0.00016922,2]
[422038853,1778515832000,-243.82,0.00016922,2]
[422038849,1778515832000,-2500.0,0.00016886,2]
[422038861,1778515832000,-3156.39,0.00016922,2]
[422038867,1778515832000,-1680.0,0.00017011,2]
[422038865,1778515832000,-17698.98,0.00016922,2]
[422038863,1778515832000,-299.99,0.00016922,4]
[422038856,1778515832000,-19999.99,0.00016922,2]
[422038847,1778515832000,-2500.0,0.00016886,2]
[422038843,1778515832000,-18163.56664592,0.0001611,15]
[422038845,1778515832000,-250.0,0.00016338,2]
[422038833,1778515832000,-675.53458806,0.00015425,2]
[422038832,1778515832000,-965.89,0.00015351,2]
[422038835,1778515832000,-208.0,0.00015472,2]
[422038834,1778515832000,-1252.70541194,0.00015425,2]
[422038836,1778515832000,-1200.0,0.00015472,2]
[422038840,1778515832000,-150.0,0.00015513,2]
[422038846,1778515832000,-300.0,0.00016886,2]
[422038838,1778515832000,-2396.14305407,0.00015473,2]
[422038842,1778515832000,-276.48601536,0.0001611,15]
[422038841,1778515832000,-255.0,0.00016109,2]
[422038850,1778515832000,-2500.0,0.00016886,2]
[422038851,1778515832000,-2500.0,0.00016886,2]
[422038844,1778515832000,-350.0,0.00016338,2]
[422038869,1778515832000,-1695.77,0.00017034,2]
[422038837,1778515832000,-614.8181064,0.00015473,2]
[422038871,1778515832000,-423.66,0.00017083,2]
[422038839,1778515832000,-11842.12175103,0.00015473,2]
[422038875,1778515832000,-200.0,0.00017536,2]
[422038904,1778515832000,-208.51550187,0.00019199,2]
[422038902,1778515832000,-500.48480402,0.00019199,2]
[422038910,1778515832000,-500.0,0.00019199,2]
[422038914,1778515832000,-500.0,0.00019199,2]
[422038913,1778515832000,-500.0,0.00019199,2]
[422038915,1778515832000,-507.27685416,0.00019199,2]
[422038912,1778515832000,-500.0,0.00019199,2]
[422038923,1778515832000,-399.92906059,0.00019199,2]
[422038917,1778515832000,-500.0,0.00019199,2]
[422038920,1778515832000,-500.0,0.00019199,2]
[422038922,1778515832000,-10019.44628948,0.000192,2]
[422038919,1778515832000,-500.0,0.00019199,2]
[422038918,1778515832000,-500.0,0.00019199,2]
[422038873,1778515832000,-196.0,0.00017424,2]
[422038916,1778515832000,-500.0,0.00019199,2]
[422038907,1778515832000,-500.0,0.00019199,2]
[422038921,1778515832000,-500.0,0.00019199,2]
[422038900,1778515832000,-1916.01708307,0.00019199,2]
[422038911,1778515832000,-500.0,0.00019199,2]
[422038879,1778515832000,-1367.55,0.00017758,2]
[422038883,1778515832000,-10645.82095151,0.0001814,2]
[422038886,1778515832000,-213.3,0.0001841,2]
[422038888,1778515832000,-1181.0,0.00018702,2]
[422038892,1778515832000,-200.6257253,0.00018872,2]
[422038881,1778515832000,-182.22,0.0001789,2]
[422038896,1778515832000,-200.0,0.00019123,2]
[422038908,1778515832000,-500.0,0.00019199,2]
[422038890,1778515832000,-2000.0,0.0001885,2]
[422038898,1778515832000,-1695.77,0.00019163,2]
[422038877,1778515832000,-344.31630292,0.00017656,2]
[422038894,1778515832000,-214.82098671,0.00018972,2]
[422038906,1778515832000,-308.51705602,0.00019199,2]
[422038909,1778515832000,-500.0,0.00019199,2]
[422038949,1778515838000,-29987.28217675,0.000192,2]
[422038955,1778515838000,-500.0,0.00019273,2]
[422038952,1778515838000,-500.0,0.00019273,2]
[422038954,1778515838000,-500.0,0.00019273,2]
[422038945,1778515838000,-500.0,0.00019199,2]
[422038947,1778515838000,-34817.30985225,0.000192,2]
[422038944,1778515838000,-500.0,0.00019199,2]
[422038946,1778515838000,-500.0,0.00019199,2]
[422038943,1778515838000,-500.0,0.00019199,2]
[422038940,1778515838000,-500.0,0.00019199,2]
[422038950,1778515838000,-19608.08182067,0.000192,2]
[422038934,1778515838000,-302.81093941,0.00019199,2]
[422038948,1778515838000,-29685.87986085,0.000192,2]
[422038941,1778515838000,-500.0,0.00019199,2]
[422038935,1778515838000,-500.0,0.00019199,2]
[422038939,1778515838000,-500.0,0.00019199,2]
[422038937,1778515838000,-500.0,0.00019199,2]
[422038932,1778515838000,-500.0,0.00019199,2]
[422038938,1778515838000,-500.0,0.00019199,2]
[422038933,1778515838000,-197.18906059,0.00019199,2]
[422038931,1778515838000,-100.07093941,0.00019199,2]
[422038936,1778515838000,-500.0,0.00019199,2]
[422038953,1778515838000,-500.0,0.00019273,2]
[422038942,1778515838000,-500.0,0.00019199,2]
[422038951,1778515838000,-282.82467916,0.00019273,2]
[422038969,1778515838000,-150.0,0.00019603,2]
[422038959,1778515838000,-1346.9120401,0.0001942,2]
[422038980,1778515838000,-296.707215,0.0002,2]
[422038981,1778515838000,-2961.0,0.0002,2]
[422038979,1778515838000,-204.0,0.0002,2]
[422038978,1778515838000,-161.0,0.0002,2]
[422038975,1778515838000,-150.0,0.00019843,2]
[422038976,1778515838000,-455.0,0.0002,2]
[422038977,1778515838000,-1034.0,0.0002,2]
[422038970,1778515838000,-150.0,0.00019603,2]
[422038957,1778515838000,-11625.6370215,0.0001942,2]
[422038974,1778515838000,-508.5716395,0.00019821,2]
[422038972,1778515838000,-150.0,0.00019603,2]
[422038973,1778515838000,-5530.0,0.000197,3]
[422038967,1778515838000,-150.0,0.00019603,2]
[422038958,1778515838000,-282.53756628,0.0001942,2]
[422038971,1778515838000,-150.0,0.00019603,2]
[422038960,1778515838000,-150.0,0.000196,2]
[422038961,1778515838000,-150.0,0.00019603,2]
[422038964,1778515838000,-150.0,0.00019603,2]
[422038956,1778515838000,-151.0,0.000193,2]
[422038962,1778515838000,-151.10219896,0.00019603,2]
[422038965,1778515838000,-150.0,0.00019603,2]
[422038968,1778515838000,-150.00000001,0.00019603,2]
[422038966,1778515838000,-150.0,0.00019603,2]
[422038963,1778515838000,-150.49474749,0.00019603,2]
[422038986,1778515839000,-2985.4,0.00020548,2]
[422038984,1778515839000,-213.3,0.00020381,2]
[422038982,1778515839000,-155.0,0.0002,2]
[422038983,1778515839000,-5530.0,0.000202,5]
[422038991,1778515839000,-161.0,0.00021,2]
[422038987,1778515839000,-1709.24475285,0.000209,2]
[422038985,1778515839000,-2985.4,0.00020548,2]
[422038992,1778515839000,-204.0,0.00021,2]
[422038989,1778515839000,-1034.0,0.00021,2]
[422038997,1778515839000,-257.20696512,0.000217,2]
[422038995,1778515839000,-700.0,0.00021229,2]
[422038996,1778515839000,-1695.77,0.00021292,2]
[422038988,1778515839000,-455.0,0.00021,2]
[422038993,1778515839000,-155.0,0.00021,2]
[422038994,1778515839000,-1916.01708306,0.00021012,2]
[422038998,1778515839000,-1163.01237434,0.000217,2]
[422039001,1778515841000,-641.4523587,0.000217,2]
[422039000,1778515841000,-3836.98762566,0.000217,2]
[422039005,1778515841000,-336.74545269,0.00021799,2]
[422039003,1778515841000,-500.0,0.00021799,2]
[422039006,1778515841000,-241.93305885,0.00021799,2]
[422039010,1778515841000,-468583.00292212,0.000218,2]
[422039004,1778515841000,-500.0,0.00021799,2]
[422039002,1778515841000,-210.35801672,0.00021726,2]
[422039008,1778515841000,-502.08750098,0.00021799,2]
[422039009,1778515841000,-153.0,0.000218,5]
[422039017,1778515843000,-339.12719406,0.000218,2]
[422039018,1778515843000,-177665.8754969,0.000218,2]
[422039016,1778515843000,-4876.281,0.000218,2]
[422039023,1778515847000,-565.13904777,0.000218,2]
[422039024,1778515847000,-1771.66035222,0.000218,2]
[422039022,1778515847000,-2790.68088489,0.000218,2]
[422039032,1778515955000,150.52,0.00010785,2]
[422039033,1778516256000,250.0,0.00014,2]
[422039034,1778516504000,166.2751901,0.00013699,3]
[422039049,1778517031000,-300.0,0.00015288,2]
[422039065,1778517031000,-2500.0,0.00016776,2]
[422039063,1778517031000,-2500.0,0.00016776,2]
[422039067,1778517031000,-2895.14,0.0001811,2]
[422039062,1778517031000,-758.40723627,0.00016776,2]
[422039064,1778517031000,-688.26506824,0.00016776,2]
[422039058,1778517031000,-300.0,0.00016776,2]
[422039061,1778517031000,-1741.59276373,0.00016776,2]
[422039069,1778517031000,-500.0,0.00018125,2]
[422039059,1778517031000,-397.31281132,0.00016776,2]
[422039068,1778517031000,-200.0,0.00018125,2]
[422039057,1778517031000,-414.0,0.00016775,2]
[422039054,1778517031000,-190.7,0.00016438,2]
[422039056,1778517031000,-1200.0,0.00016775,2]
[422039055,1778517031000,-300.0,0.00016775,2]
[422039052,1778517031000,-300.0,0.00015672,2]
[422039053,1778517031000,-300.0,0.00016,2]
[422039051,1778517031000,-97.19263481,0.0001544,2]
[422039066,1778517031000,-350.0,0.00018,2]
[422039048,1778517031000,-150.0,0.00015251,2]
[422039060,1778517031000,-2500.0,0.00016776,2]
[422039081,1778517031000,-151.0,0.00018125,2]
[422039050,1778517031000,-110.9663448,0.0001544,2]
[422039070,1778517031000,-409.70823694,0.00018125,2]
[422039071,1778517031000,-500.0,0.00018125,2]
[422039097,1778517031000,-500.0,0.00018125,2]
[422039098,1778517031000,-151.0,0.00018125,2]
[422039092,1778517031000,-151.0,0.00018125,2]
[422039094,1778517031000,-151.0,0.00018125,2]
[422039096,1778517031000,-151.0,0.00018125,2]
[422039093,1778517031000,-500.0,0.00018125,2]
[422039086,1778517031000,-151.0,0.00018125,2]
[422039090,1778517031000,-151.0,0.00018125,2]
[422039089,1778517031000,-151.0,0.00018125,2]
[422039091,1778517031000,-151.0,0.00018125,2]
[422039095,1778517031000,-500.0,0.00018125,2]
[422039088,1778517031000,-151.0,0.00018125,2]
[422039085,1778517031000,-151.0,0.00018125,2]
[422039079,1778517031000,-151.0,0.00018125,2]
[422039075,1778517031000,-151.0,0.00018125,2]
[422039077,1778517031000,-500.0,0.00018125,2]
[422039072,1778517031000,-151.0,0.00018125,2]
[422039073,1778517031000,-500.0,0.00018125,2]
[422039083,1778517031000,-151.0,0.00018125,2]
[422039084,1778517031000,-151.0,0.00018125,2]
[422039087,1778517031000,-151.0,0.00018125,2]
[422039082,1778517031000,-151.0,0.00018125,2]
[422039113,1778517032000,-190.7,0.0001841,2]
[422039115,1778517032000,-166.66,0.00018797,2]
[422039119,1778517032000,-4073.8,0.00019213,2]
[422039112,1778517032000,-500.0,0.00018399,2]
[422039117,1778517032000,-17069.9,0.00018906,2]
[422039130,1778517032000,-160.10266927,0.0002,2]
[422039121,1778517032000,-200.0,0.00019257,2]
[422039129,1778517032000,-1045.0,0.0002,2]
[422039132,1778517032000,-160.10266929,0.0002,2]
[422039114,1778517032000,-480.0,0.00018418,2]
[422039110,1778517032000,-150.99,0.00018125,2]
[422039118,1778517032000,-500.0,0.00019205,2]
[422039099,1778517032000,-151.0,0.00018125,2]
[422039109,1778517032000,-500.0,0.00018125,2]
[422039111,1778517032000,-420.0,0.00018326,2]
[422039107,1778517032000,-151.0,0.00018125,2]
[422039104,1778517032000,-151.0,0.00018125,2]
[422039106,1778517032000,-151.0,0.00018125,2]
[422039103,1778517032000,-151.0,0.00018125,2]
[422039105,1778517032000,-151.0,0.00018125,2]
[422039102,1778517032000,-151.0,0.00018125,2]
[422039101,1778517032000,-151.0,0.00018125,2]
[422039131,1778517032000,-160.10266927,0.0002,2]
[422039100,1778517032000,-151.0,0.00018125,2]
[422039108,1778517032000,-151.0,0.00018125,2]
[422039116,1778517032000,-500.0,0.00018833,2]
[422039123,1778517032000,-150.0,0.000196,2]
[422039127,1778517032000,-578.13,0.00019968,2]
[422039122,1778517032000,-150.0,0.00019529,2]
[422039152,1778517032000,-519.4426,0.00021336,2]
[422039153,1778517032000,-7543.088928,0.00021336,2]
[422039151,1778517032000,-1154.8543,0.00021336,2]
[422039150,1778517032000,-2152.206,0.00021336,2]
[422039149,1778517032000,-578.13,0.00021273,2]
[422039146,1778517032000,-163.0,0.00021,2]
[422039124,1778517032000,-193.1,0.00019654,2]
[422039147,1778517032000,-206.0,0.00021,2]
[422039144,1778517032000,-461.0,0.00021,2]
[422039145,1778517032000,-1045.0,0.00021,2]
[422039134,1778517032000,-400.0,0.0002,2]
[422039143,1778517032000,-383.00791248,0.0002099,2]
[422039148,1778517032000,-193.1,0.00021129,2]
[422039142,1778517032000,-166.21,0.00020776,2]
[422039141,1778517032000,-193.1,0.00020637,2]
[422039126,1778517032000,-472.96,0.00019968,2]
[422039125,1778517032000,-211.83,0.00019726,2]
[422039120,1778517032000,-11082.87,0.00019252,2]
[422039133,1778517032000,-163.0,0.0002,2]
[422039128,1778517032000,-461.0,0.0002,2]
[422039138,1778517032000,-587.0,0.00020021,2]
[422039135,1778517032000,-206.0,0.0002,2]
[422039137,1778517032000,-165.0,0.0002,2]
[422039136,1778517032000,-1980.0,0.0002,2]
[422039139,1778517032000,-193.1,0.00020146,2]
[422039140,1778517032000,-190.7,0.00020381,2]
[422039163,1778517037000,-500.0,0.00021435,2]
[422039166,1778517037000,-500.0,0.00021435,2]
[422039164,1778517037000,-500.0,0.00021435,2]
[422039162,1778517037000,-500.0,0.00021435,2]
[422039160,1778517037000,-169.3531412,0.00021435,2]
[422039165,1778517037000,-500.0,0.00021435,2]
[422039158,1778517037000,-1513.25310596,0.00021336,2]
[422039159,1778517037000,-1729.80230249,0.00021336,2]
[422039157,1778517037000,-40416.94848885,0.00021336,2]
[422039156,1778517037000,-655.85118315,0.00021336,2]
[422039161,1778517037000,-645.96333656,0.00021435,2]
[422039168,1778517037000,-500.0,0.00021435,2]
[422039174,1778517037000,-399.78381323,0.00021435,2]
[422039170,1778517037000,-500.0,0.00021435,2]
[422039167,1778517037000,-573.81374066,0.00021435,2]
[422039180,1778517037000,-7089.0467128,0.00021436,2]
[422039177,1778517037000,-500.0,0.00021435,2]
[422039179,1778517037000,-2459.2724259,0.00021436,2]
[422039175,1778517037000,-500.0,0.00021435,2]
[422039178,1778517037000,-529.11263333,0.00021435,2]
[422039173,1778517037000,-500.0,0.00021435,2]
[422039172,1778517037000,-500.0,0.00021435,2]
[422039171,1778517037000,-500.0,0.00021435,2]
[422039169,1778517037000,-500.0,0.00021435,2]
[422039176,1778517037000,-223.91298618,0.00021435,2]
[422039193,1778517038000,-152.0,0.00021541,2]
[422039190,1778517038000,-152.0,0.00021541,2]
[422039192,1778517038000,-152.0,0.00021541,2]
[422039187,1778517038000,-151.0,0.00021541,2]
[422039189,1778517038000,-152.0,0.00021541,2]
[422039185,1778517038000,-152.0,0.00021541,2]
[422039181,1778517038000,-516343.1090289,0.00021436,2]
[422039194,1778517038000,-151.00000001,0.00021541,2]
[422039195,1778517038000,-152.0,0.00021541,2]
[422039184,1778517038000,-152.0,0.00021541,2]
[422039182,1778517038000,-27399.197908,0.00021436,2]
[422039188,1778517038000,-152.0,0.00021541,2]
[422039196,1778517038000,-152.0,0.00021541,2]
[422039191,1778517038000,-152.0,0.00021541,2]
[422039183,1778517038000,-1844.4543193,0.00021436,2]
[422039197,1778517038000,-152.0,0.00021541,2]
[422039210,1778517038000,-766.39805676,0.000217,2]
[422039186,1778517038000,-152.0,0.00021541,2]
[422039205,1778517038000,-193.1,0.0002162,2]
[422039206,1778517038000,-201.0040537,0.0002169,2]
[422039209,1778517038000,-368154.11084445,0.000217,2]
[422039202,1778517038000,-315.07892552,0.000216,2]
[422039207,1778517038000,-155.0,0.000217,5]
[422039204,1778517038000,-427.6349058,0.000216,2]
[422039201,1778517038000,-151.0,0.00021596,2]
[422039200,1778517038000,-151.0,0.0002159,2]
[422039199,1778517038000,-195.910297,0.0002159,2]
[422039208,1778517038000,-323634.25977357,0.000217,2]
[422039198,1778517038000,-148225.95098132,0.0002159,2]
[422039203,1778517038000,-5000.0,0.000216,2]
[422039214,1778517040000,-1452.34342784,0.000217,2]
[422039222,1778517040000,-582.740833,0.000217,2]
[422039213,1778517040000,-266.03013201,0.000217,2]
[422039247,1778517043000,-20999.64130413,0.000217,2]
[422039254,1778517045000,-4081.8999,0.000217,2]
[422039253,1778517045000,-2717.58227151,0.000217,2]
[422039251,1778517045000,-150.0,0.00021336,2]
[422039252,1778517045000,-160.546,0.000217,2]
[422039255,1778517046000,-3415.29,0.000217,2]
[422039292,1778517185000,161.52,0.0001075,2]
[422039295,1778517185000,161.52,0.00014193,2]
[422039294,1778517185000,161.52,0.00013046,2]
[422039293,1778517185000,161.52,0.00011898,2]
[422039296,1778517364000,150.0,0.00013699,3]
[422039326,1778517859000,200.0,1.8e-06,7]
[422039327,1778517861000,200.0,1.8e-06,7]
[422039328,1778517862000,200.0,1.8e-06,7]
[422039329,1778517864000,200.0,1.8e-06,7]
[422039330,1778517866000,200.0,1.8e-06,7]
[422039332,1778518002000,161.52,0.00011432,2]
[422039331,1778518002000,161.52,9.589e-05,2]
[422039333,1778518003000,161.52,0.00013275,2]
[422039334,1778518061000,250.0,0.00014,2]
[422039335,1778518217000,100161.30612676,0.00027397,120]
[422039336,1778518225000,635.0,0.00014794,2]
[422039345,1778518232000,-54.95224747,0.00015342,2]
[422039338,1778518232000,-850.592,0.00015068,2]
[422039341,1778518232000,-191.10699279,0.0001524,2]
[422039339,1778518232000,-161.52,0.00015117,2]
[422039347,1778518232000,-500.0,0.00015342,2]
[422039343,1778518232000,-278.65100926,0.00015325,2]
[422039344,1778518232000,-150.0,0.00015331,2]
[422039350,1778518232000,-500.0,0.00015342,2]
[422039342,1778518232000,-221.78984733,0.00015275,2]
[422039340,1778518232000,-391.38790315,0.00015175,2]
[422039348,1778518232000,-500.0,0.00015342,2]
[422039346,1778518232000,-445.04775253,0.00015342,2]
[422039349,1778518232000,-500.0,0.00015342,2]
[422039351,1778518232000,-500.0,0.00015342,2]
[422039352,1778518232000,-500.0,0.00015342,2]
[422039399,1778518233000,-706.02,0.0001994,2]
[422039396,1778518233000,-150.0,0.0001943,2]
[422039398,1778518233000,-167.35,0.00019851,2]
[422039395,1778518233000,-167.4,0.00019367,2]
[422039394,1778518233000,-186.4,0.00019366,2]
[422039393,1778518233000,-167.35,0.00019366,2]
[422039392,1778518233000,-196.0,0.00019361,2]
[422039391,1778518233000,-22694.54,0.0001926,2]
[422039388,1778518233000,-211.83,0.00019008,2]
[422039383,1778518233000,-161.52,0.00018802,2]
[422039402,1778518233000,-414.0,0.0002,2]
[422039397,1778518233000,-171.84,0.000196,2]
[422039404,1778518233000,-154.0,0.0002,2]
[422039401,1778518233000,-3221.5,0.00019968,2]
[422039405,1778518233000,-185.0,0.0002,2]
[422039408,1778518233000,-186.4,0.0002,2]
[422039406,1778518233000,-186.4,0.0002,2]
[422039403,1778518233000,-941.0,0.0002,2]
[422039409,1778518233000,-186.4,0.0002,2]
[422039407,1778518233000,-186.4,0.0002,2]
[422039410,1778518233000,-150.0,0.0002015,4]
[422039411,1778518233000,-167.35,0.00020335,2]
[422039415,1778518233000,-152.0,0.00020492,2]
[422039414,1778518233000,-152.0,0.00020492,2]
[422039413,1778518233000,-823.0,0.00020432,2]
[422039400,1778518233000,-302.57,0.0001995,2]
[422039379,1778518233000,-587.0,0.0001868,2]
[422039384,1778518233000,-488.99,0.00018802,2]
[422039389,1778518233000,-159.88,0.00019113,2]
[422039417,1778518233000,-151.0,0.00020492,2]
[422039355,1778518233000,-300.0,0.00015615,2]
[422039356,1778518233000,-550.0,0.00016163,2]
[422039354,1778518233000,-1200.0,0.00015615,2]
[422039353,1778518233000,-945.0,0.00015342,2]
[422039357,1778518233000,-168.6,0.00016438,2]
[422039360,1778518233000,-2500.0,0.00016629,2]
[422039359,1778518233000,-2500.0,0.00016629,2]
[422039358,1778518233000,-197.41221446,0.00016629,2]
[422039362,1778518233000,-300.0,0.00016747,2]
[422039361,1778518233000,-250.0,0.00016629,2]
[422039366,1778518233000,-420.0,0.00017079,2]
[422039373,1778518233000,-171.84,0.00018356,2]
[422039370,1778518233000,-619.0,0.00017278,2]
[422039365,1778518233000,-161.52,0.0001696,2]
[422039363,1778518233000,-250.0,0.00016747,2]
[422039368,1778518233000,-1680.0,0.00017165,2]
[422039371,1778518233000,-171.84,0.00017734,2]
[422039374,1778518233000,-168.6,0.0001841,2]
[422039376,1778518233000,-150.0,0.00018458,2]
[422039375,1778518233000,-186.4,0.0001841,2]
[422039386,1778518233000,-152.12,0.00018802,2]
[422039377,1778518233000,-150.99,0.00018533,2]
[422039390,1778518233000,-200.0,0.00019188,2]
[422039381,1778518233000,-3053.67,0.00018799,2]
[422039387,1778518233000,-171.84,0.00018978,2]
[422039378,1778518233000,-1783.24,0.00018596,2]
[422039385,1778518233000,-698.86,0.00018802,2]
[422039416,1778518233000,-152.0,0.00020492,2]
[422039428,1778518233000,-150.0,0.00020869,4]
[422039423,1778518233000,-151.00000001,0.00020492,2]
[422039452,1778518233000,-500.0,0.00021452,2]
[422039460,1778518233000,-500.0,0.00021485,2]
[422039459,1778518233000,-500.0,0.00021485,2]
[422039461,1778518233000,-500.0,0.00021485,2]
[422039454,1778518233000,-546.02,0.00021476,3]
[422039455,1778518233000,-500.0,0.00021485,2]
[422039449,1778518233000,-150.0,0.00021452,2]
[422039451,1778518233000,-194.07621856,0.00021452,2]
[422039457,1778518233000,-500.0,0.00021485,2]
[422039453,1778518233000,-166.94260002,0.00021452,2]
[422039456,1778518233000,-500.0,0.00021485,2]
[422039458,1778518233000,-500.0,0.00021485,2]
[422039450,1778518233000,-500.0,0.00021452,2]
[422039462,1778518233000,-500.0,0.00021485,2]
[422039464,1778518233000,-500.0,0.00021485,2]
[422039465,1778518233000,-500.0,0.00021485,2]
[422039463,1778518233000,-500.0,0.00021485,2]
[422039472,1778518233000,-500.0,0.00021485,2]
[422039471,1778518233000,-500.0,0.00021485,2]
[422039469,1778518233000,-500.0,0.00021485,2]
[422039467,1778518233000,-500.0,0.00021485,2]
[422039470,1778518233000,-500.0,0.00021485,2]
[422039473,1778518233000,-500.0,0.00021485,2]
[422039418,1778518233000,-152.0,0.00020492,2]
[422039475,1778518233000,-500.0,0.00021485,2]
[422039474,1778518233000,-500.0,0.00021485,2]
[422039466,1778518233000,-500.0,0.00021485,2]
[422039443,1778518233000,-1324.09646775,0.00021398,2]
[422039468,1778518233000,-500.0,0.00021485,2]
[422039444,1778518233000,-500.0,0.00021435,2]
[422039446,1778518233000,-250.0,0.00021435,2]
[422039421,1778518233000,-152.0,0.00020492,2]
[422039412,1778518233000,-168.6,0.00020381,2]
[422039420,1778518233000,-152.0,0.00020492,2]
[422039419,1778518233000,-152.0,0.00020492,2]
[422039425,1778518233000,-152.0,0.00020492,2]
[422039424,1778518233000,-152.0,0.00020492,2]
[422039426,1778518233000,-152.0,0.00020492,2]
[422039431,1778518233000,-500.0,0.0002091,2]
[422039434,1778518233000,-1783.24,0.0002092,2]
[422039432,1778518233000,-500.0,0.0002091,2]
[422039430,1778518233000,-500.0,0.0002091,2]
[422039427,1778518233000,-167.35,0.00020819,2]
[422039422,1778518233000,-152.0,0.00020492,2]
[422039435,1778518233000,-414.0,0.00021,2]
[422039441,1778518233000,-853.64,0.0002139,2]
[422039445,1778518233000,-250.49009514,0.00021435,2]
[422039439,1778518233000,-167.35,0.00021303,2]
[422039442,1778518233000,-1623.667,0.0002139,2]
[422039448,1778518233000,-280.37082092,0.00021452,2]
[422039440,1778518233000,-2797.52572278,0.00021335,2]
[422039437,1778518233000,-154.0,0.00021,2]
[422039438,1778518233000,-185.0,0.00021,2]
[422039436,1778518233000,-941.0,0.00021,2]
[422039429,1778518233000,-500.0,0.0002091,2]
[422039447,1778518233000,-150.0,0.00021452,2]
[422039433,1778518233000,-500.0,0.0002091,10]
[422039478,1778518234000,-500.0,0.00021485,2]
[422039482,1778518234000,-500.0,0.00021485,2]
[422039481,1778518234000,-500.0,0.00021485,2]
[422039477,1778518234000,-500.0,0.00021485,2]
[422039480,1778518234000,-500.0,0.00021485,2]
[422039479,1778518234000,-500.0,0.00021485,2]
[422039484,1778518234000,-5146.4615617,0.0002149,2]
[422039483,1778518234000,-500.0,0.00021485,2]
[422039485,1778518234000,-13266.03339562,0.0002149,2]
[422039476,1778518234000,-500.0,0.00021485,2]
[422039502,1778518237000,-500.0,0.00021485,2]
[422039500,1778518237000,-500.0,0.00021485,2]
[422039501,1778518237000,-500.0,0.00021485,2]
[422039498,1778518237000,-500.0,0.00021485,2]